bitfinex/quotes_ETHUSD_20220227
["timestamp","ask_amount","ask_price","bid_price","bid_amount"]
[1645958116285,2.79008177,2774.9,2774.7,0.13142113]
[1645958116486,1.38272431,2774.8,2774.7,0.13142113]
[1645958117533,2.38272431,2774.8,2774.7,0.13142113]
[1645958119333,1.38272431,2774.8,2774.7,0.13142113]
[1645958119830,1.38272431,2774.8,2774.5,0.13142113]
[1645958120030,1.38272431,2774.8,2774.6,0.13142113]
[1645958120231,1.38272431,2774.8,2774.7,0.13142113]
[1645958120735,1.38879241,2774.8,2774.2,0.13142113]
[1645958120979,1.38272431,2774.7,2774.3,0.13142113]
[1645958121178,1.38272431,2774.7,2774.4,0.13142113]
[1645958121377,1.38272431,2774.7,2774.5,0.13142113]
[1645958121577,2.50932543,2774.7,2774.2,1.26250954]
[1645958121776,1.38655772,2774.6,2774.3,0.13142113]
[1645958122983,0.88655772,2774.6,2774.3,0.13142113]
[1645958123195,0.00606825,2774.6,2774.3,0.13142113]
[1645958124185,1.0,2774.7,2774.3,0.13142113]
[1645958124386,0.00606825,2774.6,2774.3,0.13142113]
[1645958125232,1.0,2774.7,2774.3,0.13142113]
[1645958125429,1.3613,2774.7,2774.1,7.2094]
[1645958125628,1.20310986,2774.6,2774.1,7.2094]
[1645958126332,1.20310986,2774.6,2774.3,1.3661924]
[1645958126530,1.19704161,2774.6,2774.3,1.3661924]
[1645958126731,1.20310972,2774.6,2774.3,1.3661924]
[1645958127735,1.19704161,2774.6,2774.3,1.3661924]
[1645958128036,1.20310986,2774.6,2774.3,1.3661924]
[1645958128485,1.20310986,2774.6,2774.3,1.40979611]
[1645958128883,1.19704161,2774.6,2774.3,1.40979611]
[1645958129084,1.20310986,2774.6,2774.3,1.40979611]
[1645958129785,1.0,2775.0,2774.4,10.5]
[1645958129988,1.0,2775.0,2774.6,0.67552724]
[1645958130188,7.7207,2775.6,2774.7,4.17552724]
[1645958130189,4.7468,2775.6,2774.7,4.17552724]
[1645958130390,4.7468,2775.6,2774.7,0.67552724]
[1645958130593,4.7468,2775.6,2774.7,4.17552724]
[1645958130792,4.7468,2775.6,2774.8,0.1441]
[1645958130990,4.7468,2775.6,2775.2,1.13466553]
[1645958131194,3.03176,2775.8,2775.2,1.13466553]
[1645958131391,0.68215538,2775.9,2775.2,1.13466553]
[1645958131590,0.00096,2776.0,2775.2,1.13466553]
[1645958131591,0.68311538,2776.0,2775.2,1.13466553]
[1645958131791,1.0,2775.8,2775.2,1.13466553]
[1645958132439,0.00096,2776.0,2775.7,1.26897284]
[1645958132635,1.0,2776.1,2775.8,3.5]
[1645958133034,0.95,2776.1,2775.7,1.26897284]
[1645958133234,1.6579,2776.3,2775.7,1.26897284]
[1645958133434,1.65886,2776.3,2775.7,1.26897284]
[1645958133740,1.6579,2776.3,2775.7,1.26897284]
[1645958134133,0.00606708,2776.1,2775.7,1.26897284]
[1645958134933,0.00096,2776.4,2775.7,1.26897284]
[1645958135133,0.00606716,2776.0,2775.8,3.5]
[1645958135334,0.00495168,2776.0,2775.8,1.0]
[1645958135533,0.00495168,2776.0,2775.8,4.8613]
[1645958135735,0.00495168,2776.0,2775.9,3.5]
[1645958135975,0.00495168,2776.0,2775.9,3.8613]
[1645958136175,0.68311538,2777.1,2775.9,4.8613]
[1645958136381,0.68311538,2777.1,2775.9,5.1613]
[1645958136382,0.00096,2777.1,2775.9,5.1613]
[1645958136575,0.68311538,2777.2,2775.9,5.4113]
[1645958136777,0.68311538,2777.2,2776.1,0.3613]
[1645958136976,0.00096,2777.2,2776.2,3.5]
[1645958137381,0.00096,2777.2,2776.2,4.5]
[1645958138281,0.95056,2777.2,2776.2,4.5]
[1645958138682,0.95056,2777.2,2776.0,3.5]
[1645958138885,0.68311538,2777.2,2775.9,1.4359]
[1645958139082,0.9496,2777.0,2775.9,1.46881845]
[1645958139284,0.00096,2776.9,2775.9,1.46881845]
[1645958139738,1.33865043,2776.6,2776.0,1.34608776]
[1645958140139,0.00096,2776.9,2776.0,1.34608776]
[1645958140140,0.00606677,2776.5,2776.0,1.34608776]
[1645958140937,0.00096,2776.9,2776.0,1.34608776]
[1645958141137,0.00606689,2776.4,2776.0,1.34608776]
[1645958142243,0.00096,2776.9,2776.0,1.34608776]
[1645958142448,0.00574297,2776.3,2776.0,1.34608776]
[1645958143477,0.00096,2776.9,2776.0,1.34608776]
[1645958143678,0.005743,2776.3,2776.0,1.34608776]
[1645958143877,0.005743,2776.3,2776.2,0.03278922]
[1645958144685,0.00096,2776.9,2776.2,0.03278922]
[1645958144686,0.95056,2776.9,2776.2,0.03278922]
[1645958144881,0.00574293,2776.4,2776.2,0.03278922]
[1645958145080,0.00574293,2776.4,2776.3,0.13726578]
[1645958145281,0.00574293,2776.4,2776.2,0.03278922]
[1645958145882,2.37518286,2777.3,2776.6,1.36465308]
[1645958146181,1.36891588,2777.2,2776.6,1.36465308]
[1645958146980,1.36891588,2777.2,2776.2,0.03278922]
[1645958147237,0.00576436,2777.0,2776.2,0.03278922]
[1645958147638,0.00576436,2777.0,2776.2,3.53278922]
[1645958147837,0.00576436,2777.0,2776.2,4.53278922]
[1645958148340,0.00096,2777.2,2776.2,4.5]
[1645958148539,0.00576456,2776.7,2776.2,1.0]
[1645958148837,0.00576456,2776.7,2776.1,0.33324148]
[1645958148838,0.00576456,2776.7,2776.1,0.63324148]
[1645958149038,0.00576456,2776.7,2776.2,3.8613]
[1645958149251,0.00576456,2776.7,2776.2,4.8613]
[1645958149439,0.00096,2777.2,2776.8,1.02793067]
[1645958149639,2.31709504,2777.3,2776.3,1.2371]
[1645958149842,1.36845504,2777.2,2776.3,1.2371]
[1645958150140,1.36845504,2777.2,2776.4,3.5]
[1645958150340,0.00096,2777.2,2776.4,4.8613]
[1645958150543,0.9496,2777.3,2776.5,0.13693106]
[1645958150744,0.00096,2777.2,2776.4,4.8613]
[1645958150994,0.00576294,2776.9,2776.5,0.1369051]
[1645958151594,0.00576294,2776.9,2776.4,5.3803]
[1645958151797,0.00096,2777.6,2776.5,1.43060946]
[1645958151798,1.39489369,2777.5,2776.5,1.43060946]
[1645958151994,0.00096,2777.4,2776.6,3.5]
[1645958152198,1.07809384,2777.7,2776.6,3.5]
[1645958152199,0.0057624,2776.8,2776.6,3.5]
[1645958152399,0.0057624,2776.8,2776.6,4.5]
[1645958152602,0.0057624,2776.8,2776.6,3.5]
[1645958152801,0.0057624,2776.8,2776.6,4.5]
[1645958152998,0.00096,2777.2,2776.6,3.5]
[1645958153200,0.9496,2777.3,2776.6,4.5]
[1645958153402,0.0057624,2776.8,2776.7,0.3613]
[1645958153600,0.0057624,2776.8,2776.7,3.8613]
[1645958153803,0.0057624,2776.8,2776.7,3.5]
[1645958154202,0.00096,2777.2,2776.7,3.5]
[1645958154407,0.00599855,2776.9,2776.7,3.5]
[1645958154633,0.00599855,2776.9,2776.6,1.02602465]
[1645958154825,0.00599855,2776.9,2776.6,0.02602465]
[1645958155225,0.00489907,2776.9,2776.6,0.02602465]
[1645958155430,0.00096,2777.2,2776.7,1.25305182]
[1645958155626,0.00599855,2776.9,2776.8,3.5]
[1645958155826,0.00599855,2776.9,2776.8,4.5]
[1645958156626,0.9496,2777.3,2776.8,4.5]
[1645958156827,0.00096,2777.6,2776.8,4.5]
[1645958157032,1.07809384,2777.7,2777.4,1.24279166]
[1645958157234,0.00096,2777.6,2777.4,1.24279166]
[1645958157432,7.36,2777.9,2777.4,1.24279166]
[1645958157632,1.36390304,2777.8,2777.4,1.24279166]
[1645958157836,7.36,2777.9,2777.4,1.24279166]
[1645958158036,1.36391679,2777.7,2777.0,3.5]
[1645958158233,1.36487679,2777.8,2777.0,4.1613]
[1645958158498,0.00096,2778.0,2777.0,5.18716966]
[1645958158698,1.36438695,2778.0,2777.0,5.18716966]
[1645958158897,1.36438695,2778.0,2777.0,4.82586966]
[1645958159097,1.28679926,2777.7,2777.0,4.82586966]
[1645958159299,0.00606531,2777.6,2777.0,1.62586966]
[1645958159499,0.00606531,2777.6,2777.0,0.02586966]
[1645958160299,1.28679926,2777.7,2777.0,0.02586966]
[1645958160501,0.00389741,2777.4,2777.0,0.02586966]
[1645958161499,0.00096,2777.6,2777.0,0.02586966]
[1645958161701,0.00389741,2777.3,2777.0,0.02586966]
[1645958162532,1.28775926,2777.7,2777.0,0.02586966]
[1645958163133,0.00606823,2777.3,2777.0,0.02586966]
[1645958163533,0.00606823,2777.3,2776.9,2.4116484]
[1645958163933,1.28775926,2777.7,2776.9,2.4116484]
[1645958164134,0.00606823,2777.3,2776.9,2.4116484]
[1645958164535,0.00606823,2777.3,2776.9,1.1485]
[1645958164742,0.00606823,2777.3,2776.7,0.02576634]
[1645958165136,0.9496,2777.1,2776.7,0.02576634]
[1645958166182,0.00096,2777.3,2776.7,0.02576634]
[1645958166383,0.9496,2777.2,2776.7,0.02576634]
[1645958166584,0.00606843,2777.0,2776.7,0.02576634]
[1645958167386,1.17262166,2776.9,2776.7,0.02576634]
[1645958167590,0.9496,2777.1,2776.7,0.02576634]
[1645958167787,0.00568807,2777.0,2776.7,0.02576634]
[1645958168588,1.05498411,2777.3,2776.7,0.02576634]
[1645958168987,0.00568807,2777.0,2776.5,0.27586966]
[1645958169291,0.00568807,2777.0,2776.5,0.02586966]
[1645958169927,0.00096,2777.2,2776.5,0.02586966]
[1645958170134,0.00568815,2776.9,2776.5,0.02586966]
[1645958171128,1.31186,2777.5,2776.8,1.39683022]
[1645958171330,1.36813478,2777.4,2776.8,1.39683022]
[1645958172132,1.31186,2777.5,2776.5,0.02586966]
[1645958172334,0.00096,2777.3,2776.6,0.1369327]
[1645958172534,0.00572256,2777.2,2776.6,0.1369327]
[1645958173387,0.00096,2777.3,2776.9,1.32463235]
[1645958173588,1.37057784,2777.4,2776.9,1.32463235]
[1645958173788,0.95056,2777.5,2776.7,0.32164415]
[1645958173789,0.00572272,2777.0,2776.7,0.32164415]
[1645958173988,0.00572272,2777.0,2776.8,0.13709655]
[1645958174588,0.00096,2777.4,2776.8,0.13709655]
[1645958174789,1.36365004,2777.4,2776.8,0.13709655]
[1645958174989,0.00572272,2777.0,2776.8,0.13709655]
[1645958175190,0.00572272,2777.0,2776.9,1.05410895]
[1645958175394,0.00461052,2777.0,2776.9,1.1912055]
[1645958175890,0.00096,2777.4,2776.9,1.1912055]
[1645958176089,0.00096,2777.4,2777.0,0.13709655]
[1645958176090,1.36453363,2777.4,2777.0,0.13709655]
[1645958177552,1.36453363,2777.4,2777.1,0.13709655]
[1645958177753,1.36453363,2777.4,2776.7,0.02164415]
[1645958177957,1.36453363,2777.4,2776.8,0.14615525]
[1645958178155,1.72583363,2777.4,2776.8,0.14615525]
[1645958178356,1.36453363,2777.3,2776.8,0.14615525]
[1645958178555,1.12930614,2777.1,2776.8,0.14615525]
[1645958178756,1.36453363,2777.0,2776.8,0.14615525]
[1645958179457,0.00096,2777.3,2776.8,0.14615525]
[1645958179658,0.9496,2777.5,2776.8,0.13382025]
[1645958179659,0.00606842,2777.0,2776.8,0.13382025]
[1645958180258,0.00606842,2777.0,2776.8,0.13052967]
[1645958180461,1.06688088,2776.9,2776.8,0.13052967]
[1645958180884,0.00606842,2777.0,2776.8,0.13052967]
[1645958181983,3.5,2777.1,2776.7,0.02164415]
[1645958182190,0.68215538,2777.2,2776.7,0.02164415]
[1645958182387,0.00606842,2777.0,2776.7,0.02164415]
[1645958182587,1.23982382,2776.9,2776.7,0.02164415]
[1645958183788,1.23982382,2776.9,2776.1,1.1666]
[1645958184842,1.23982382,2776.9,2776.2,0.67552724]
[1645958185443,1.13982382,2776.9,2776.2,0.67552724]
[1645958187044,1.13982382,2776.9,2776.1,1.39122724]
[1645958187253,1.13982382,2776.9,2776.2,0.67552724]
[1645958187449,0.00606793,2777.0,2776.2,0.67552724]
[1645958187654,0.00606793,2777.0,2776.4,0.67552724]
[1645958187850,0.00096,2777.3,2776.5,3.5]
[1645958188051,0.00096,2777.3,2776.5,4.019]
[1645958188259,1.9873,2777.6,2776.5,5.019]
[1645958188260,0.00389598,2777.0,2776.5,5.019]
[1645958188884,0.00389598,2777.0,2776.8,1.22173301]
[1645958189085,1.0,2777.2,2776.5,1.519]
[1645958189285,0.00389619,2777.0,2776.5,0.519]
[1645958190286,0.00096,2777.3,2776.6,1.41584891]
[1645958190487,0.00607069,2777.0,2776.6,1.41584891]
[1645958190686,0.00607069,2777.0,2776.5,0.519]
[1645958190890,0.00607069,2777.0,2776.5,0.819]
[1645958191290,0.00607069,2777.0,2776.4,0.3]
[1645958191487,0.00096,2777.3,2776.3,1.03272461]
[1645958191789,0.00607069,2777.0,2776.4,1.25674771]
[1645958192639,0.00096,2777.3,2776.4,1.25674771]
[1645958192841,0.0038963,2777.0,2776.4,2.15743201]
[1645958193445,0.0038963,2777.0,2776.7,0.02597298]
[1645958193843,0.00096,2777.3,2776.4,3.25150499]
[1645958194042,0.00389651,2777.0,2776.4,3.25150499]
[1645958194448,0.00389651,2777.0,2776.5,3.5]
[1645958194844,0.00389651,2777.0,2776.5,4.5]
[1645958195043,0.00096,2777.3,2776.4,3.01212069]
[1645958195244,0.00607599,2777.0,2776.4,3.25150499]
[1645958195443,0.00498709,2777.0,2776.4,2.35082069]
[1645958195643,0.00498709,2777.0,2776.4,2.25150499]
[1645958195892,0.90594709,2777.5,2776.5,3.5]
[1645958196293,1.3790451,2777.4,2776.5,4.5]
[1645958196494,1.3790451,2777.4,2776.4,2.65082069]
[1645958196694,1.3790451,2777.4,2776.4,5.75150499]
[1645958196895,1.3790451,2777.4,2776.4,3.25150499]
[1645958197093,1.3790451,2777.4,2776.5,3.5]
[1645958197297,1.3790451,2777.4,2776.5,1.0]
[1645958197697,1.3790451,2777.4,2776.6,0.67884127]
[1645958198101,2.6459451,2777.4,2776.6,0.67884127]
[1645958198504,2.2846451,2777.4,2776.6,0.67884127]
[1645958198709,1.3790451,2777.4,2776.6,0.67884127]
[1645958198901,0.00389311,2777.1,2776.8,1.12700221]
[1645958199101,0.00389311,2777.1,2776.9,3.5]
[1645958199304,1.67060756,2777.6,2776.9,4.5]
[1645958199504,1.67060756,2777.6,2776.9,5.17884127]
[1645958200337,1.38181978,2777.5,2777.0,0.13493163]
[1645958201538,2.57416472,2777.5,2777.1,0.13493163]
[1645958201741,1.38181978,2777.4,2777.2,0.13493163]
[1645958201938,1.38181978,2777.4,2777.3,0.13493163]
[1645958202541,1.38181978,2777.4,2776.9,3.63493163]
[1645958202742,3.1162,2777.7,2777.0,0.13493163]
[1645958202743,1.38181978,2777.3,2777.0,0.13493163]
[1645958202943,0.00096,2777.6,2777.0,0.65393163]
[1645958203242,4.56415941,2778.0,2777.1,3.5]
[1645958203243,1.38225702,2777.7,2777.1,3.5]
[1645958203481,1.38129702,2777.6,2777.2,0.13493163]
[1645958203780,0.00096,2777.9,2777.2,0.13493163]
[1645958203781,0.0060769,2777.4,2777.2,0.13493163]
[1645958203985,0.0060769,2777.4,2777.2,0.9576729]
[1645958204181,0.0060769,2777.4,2777.3,4.15393163]
[1645958204681,0.02427973,2777.5,2777.3,5.15393163]
[1645958204882,0.02427973,2777.5,2777.3,1.65393163]
[1645958205082,0.03035659,2777.5,2777.4,0.13493163]
[1645958205883,0.02427973,2777.5,2777.4,3.63493163]
[1645958206086,0.02427973,2777.5,2777.4,0.13493163]
[1645958206284,1.39644612,2777.5,2777.4,1.13493163]
[1645958206487,0.02427973,2777.5,2777.4,0.13493163]
[1645958207341,0.02427973,2777.5,2777.4,3.63493163]
[1645958207741,0.02427973,2777.5,2777.4,5.29623163]
[1645958207940,0.02427973,2777.5,2777.4,6.2766729]
[1645958208342,0.02427973,2777.5,2777.4,2.09783163]
[1645958208541,0.02427973,2777.5,2777.4,5.59783163]
[1645958209441,0.02427973,2777.5,2777.4,7.0385005]
[1645958210043,0.02427973,2777.5,2777.4,6.8946005]
[1645958210241,0.02427973,2777.5,2777.4,5.45393163]
[1645958211080,0.02427973,2777.5,2777.4,1.95393163]
[1645958211281,0.02427973,2777.5,2777.4,4.45393163]
[1645958211693,0.02427973,2777.5,2777.4,5.45393163]
[1645958213291,0.02427973,2777.5,2777.4,1.95393163]
[1645958213690,0.02427973,2777.5,2777.4,0.95393163]
[1645958214493,0.02427973,2777.5,2777.4,0.13493163]
[1645958215636,0.01850818,2777.5,2777.4,0.13493163]
[1645958215836,0.01850818,2777.5,2777.3,3.63493163]
[1645958216037,0.01850818,2777.5,2777.4,0.13493163]
[1645958216239,0.01850818,2777.5,2777.3,0.13493163]
[1645958216436,0.01850818,2777.5,2777.3,3.63493163]
[1645958216638,0.01850818,2777.5,2777.3,5.97417705]
[1645958216845,0.01850818,2777.5,2777.4,0.13493163]
[1645958217040,0.024585,2777.5,2777.4,0.13493163]
[1645958217941,0.01850818,2777.5,2777.4,3.63493163]
[1645958218241,0.01850818,2777.5,2777.4,15.67493163]
[1645958218486,0.01850818,2777.5,2777.4,4.63493163]
[1645958218889,0.01850818,2777.5,2777.4,4.93493163]
[1645958219292,0.00096,2778.5,2777.4,12.79883163]
[1645958219503,0.00096,2778.5,2777.5,0.27883163]
[1645958219504,0.00607678,2777.6,2777.5,0.27883163]
[1645958219691,0.00607678,2777.6,2777.5,10.97953163]
[1645958219891,0.00607678,2777.6,2777.5,11.97953163]
[1645958220094,0.00607678,2777.6,2777.5,12.49775841]
[1645958220293,1.3063849,2778.5,2777.5,11.83563163]
[1645958220493,1.36791919,2778.4,2777.6,0.13493163]
[1645958220694,0.00607671,2777.7,2777.6,0.65393163]
[1645958221094,0.00607671,2777.7,2777.6,4.45393163]
[1645958221395,0.00607671,2777.7,2777.6,5.45393163]
[1645958221595,0.00096,2778.5,2777.6,5.45393163]
[1645958221794,0.00607663,2777.8,2777.7,0.13493163]
[1645958222639,0.00096,2778.5,2777.7,0.13493163]
[1645958222838,1.36859196,2778.5,2778.0,1.37915504]
[1645958223039,1.36859196,2778.5,2778.1,0.13493163]
[1645958223040,1.36763196,2778.5,2778.1,0.13493163]
[1645958223241,1.36859196,2778.5,2777.6,6.5295]
[1645958223438,1.36859196,2778.5,2777.7,0.14219169]
[1645958224240,1.36859196,2778.5,2778.1,1.21572917]
[1645958224241,0.00569613,2778.2,2778.1,1.21572917]
[1645958224442,0.00569613,2778.2,2777.6,6.6734]
[1645958224646,0.00569613,2778.2,2777.7,0.14216451]
[1645958225142,0.03130873,2778.4,2777.6,6.6734]
[1645958225345,0.00569625,2778.1,2777.7,0.14215628]
[1645958225982,0.00569625,2778.1,2777.7,1.58302016]
[1645958226281,1.34770764,2778.3,2777.8,0.14215628]
[1645958226481,1.34674764,2778.3,2777.8,0.14215628]
[1645958226682,0.00569628,2778.0,2777.9,0.14215628]
[1645958227193,0.00569628,2778.0,2777.7,0.14215628]
[1645958227390,0.00569628,2778.0,2777.5,7.5007]
[1645958227391,3.0,2777.9,2777.5,7.2007]
[1645958227590,3.9056,2777.9,2777.5,7.2007]
[1645958227790,4.2056,2777.9,2777.5,7.2007]
[1645958227992,0.1439,2777.8,2777.5,7.2007]
[1645958228191,0.9056,2777.7,2777.5,7.2007]
[1645958228392,1.27360393,2777.6,2777.5,7.2007]
[1645958229647,2.17920393,2777.6,2777.5,7.2007]
[1645958229841,2.17920393,2777.6,2777.5,6.7504]
[1645958230941,0.9056,2777.6,2777.5,6.7504]
[1645958231141,0.9056,2777.9,2777.5,6.7504]
[1645958231541,0.00572039,2777.7,2777.5,6.7504]
[1645958231943,0.91132039,2777.7,2777.5,6.7504]
[1645958232447,1.03837766,2777.6,2777.5,6.7504]
[1645958232843,1.03837766,2777.6,2777.5,6.7219]
[1645958235688,1.03837766,2777.6,2777.5,5.09885534]
[1645958236491,0.9113205,2777.7,2777.5,5.09885534]
[1645958237134,0.9056,2777.7,2777.5,5.09885534]
[1645958237533,0.91132046,2777.7,2777.5,5.09885534]
[1645958237738,1.29367743,2777.6,2777.5,5.09885534]
[1645958238334,0.9056,2777.7,2777.5,5.09885534]
[1645958238738,0.9113205,2777.7,2777.5,5.09885534]
[1645958239636,1.99301185,2777.7,2777.5,5.09885534]
[1645958239836,1.99873231,2777.7,2777.5,5.09885534]
[1645958240878,0.9056,2777.7,2777.5,5.09885534]
[1645958241083,0.91132046,2777.7,2777.5,5.09885534]
[1645958241883,0.91132046,2777.7,2777.5,4.77105534]
[1645958242082,0.9056,2777.7,2777.5,4.77105534]
[1645958242283,1.25934861,2777.6,2777.5,4.77105534]
[1645958242484,0.91132046,2777.7,2777.5,4.77105534]
[1645958243286,0.9056,2777.7,2777.5,4.77105534]
[1645958243487,1.2993708,2777.6,2777.5,4.77105534]
[1645958243888,0.91132046,2777.7,2777.5,4.77105534]
[1645958244488,0.9056,2777.7,2777.5,4.77105534]
[1645958244734,0.9113178,2777.7,2777.5,4.77105534]
[1645958245645,0.9056,2777.7,2777.5,4.77105534]
[1645958245842,0.9113178,2777.7,2777.5,4.77105534]
[1645958246842,0.9056,2777.7,2777.5,4.77105534]
[1645958247042,0.9113178,2777.7,2777.5,4.77105534]
[1645958247444,1.3442197,2777.6,2777.5,4.77105534]
[1645958247642,1.3442197,2777.6,2777.5,4.94122038]
[1645958251891,0.00572067,2777.7,2777.5,4.94122038]
[1645958252147,1.3442197,2777.6,2777.5,4.77105534]
[1645958252339,1.3442197,2777.6,2777.5,4.94121836]
[1645958255340,1.24381731,2777.8,2777.5,4.94121836]
[1645958255341,1.34994018,2777.7,2777.5,4.94121836]
[1645958255539,1.3442197,2777.6,2777.5,4.77105534]
[1645958255738,0.00572048,2777.7,2777.5,4.94126915]
[1645958255992,0.00572048,2777.7,2777.6,0.17021381]
[1645958256186,2.25615429,2777.7,2777.5,4.77105534]
[1645958256387,1.34483381,2777.6,2777.5,4.77105534]
[1645958256587,1.34483381,2777.6,2777.5,4.94137242]
[1645958258396,0.9113205,2777.7,2777.5,4.94137242]
[1645958258397,0.0057205,2777.7,2777.5,4.94137242]
[1645958258598,0.0057205,2777.7,2777.6,0.17031708]
[1645958258795,0.00096,2778.2,2777.6,0.17031708]
[1645958258994,2.02821419,2778.2,2777.6,0.17031708]
[1645958259195,0.00540791,2777.7,2777.6,0.17031708]
[1645958259398,1.35046269,2777.7,2777.6,0.17031708]
[1645958259640,1.35059091,2777.7,2777.6,0.17031708]
[1645958260032,1.345183,2777.7,2777.5,4.77105534]
[1645958260435,0.91100787,2777.8,2777.5,4.77105534]
[1645958260436,0.91100787,2777.8,2777.6,0.17031456]
[1645958260633,2.624775,2777.7,2777.6,0.17031456]
[1645958261934,1.3452482,2777.7,2777.6,0.17031456]
[1645958262539,1.3462082,2778.0,2777.6,0.17031456]
[1645958262738,0.00540787,2777.8,2777.6,0.17031456]
[1645958262938,1.3452482,2777.7,2777.6,0.17031456]
[1645958263138,0.00540787,2777.8,2777.6,0.17031456]
[1645958263389,1.34556461,2777.7,2777.6,0.17031456]
[1645958263588,0.9056,2778.1,2777.6,0.17031456]
[1645958263589,0.00096,2778.0,2777.6,0.17031456]
[1645958263793,0.00545768,2777.8,2777.6,0.17031456]
[1645958263989,1.34556411,2777.7,2777.6,0.17031456]
[1645958264189,0.00545768,2777.8,2777.6,0.17031456]
[1645958264590,0.00464036,2777.8,2777.6,0.17031456]
[1645958264789,1.39850672,2777.9,2777.6,0.17031456]
[1645958264992,1.35106186,2777.8,2777.6,0.17031456]
[1645958265194,0.00545768,2777.8,2777.6,0.17031456]
[1645958265394,1.34565886,2777.7,2777.6,0.17031456]
[1645958265594,0.00545768,2777.8,2777.6,0.17031456]
[1645958265795,1.3456885,2777.7,2777.5,4.5810699]
[1645958265993,0.9056,2777.8,2777.5,4.5810699]
[1645958266397,1.3424975,2777.6,2777.5,4.5810699]
[1645958266995,1.04472189,2777.6,2777.5,4.5810699]
[1645958267541,0.00544937,2777.7,2777.5,4.5810699]
[1645958267740,0.76104937,2777.8,2777.5,4.5810699]
[1645958267944,1.80621941,2778.2,2777.5,4.5810699]
[1645958268341,1.04541941,2778.2,2777.5,4.5810699]
[1645958268541,1.33917253,2778.0,2777.5,4.5810699]
[1645958268947,1.33917253,2778.0,2777.5,4.1307699]
[1645958269542,1.44395941,2778.1,2777.5,4.1307699]
[1645958269943,0.68315941,2778.1,2777.5,4.1307699]
[1645958270343,0.7608,2777.8,2777.5,4.1307699]
[1645958270545,1.13062394,2777.7,2777.5,4.1307699]
[1645958271894,1.13062394,2777.7,2777.5,3.9464699]
[1645958272500,0.76687645,2777.8,2777.5,3.9464699]
[1645958273103,0.68315941,2777.7,2777.5,3.9464699]
[1645958273303,1.44395941,2777.6,2777.5,3.9464699]
[1645958273898,0.68315941,2777.6,2777.5,3.9464699]
[1645958274099,1.73014525,2777.6,2777.5,3.9464699]
[1645958274303,2.49094525,2777.6,2777.5,3.9464699]
[1645958274645,1.73014525,2777.6,2777.5,3.9464699]
[1645958275035,2.49094525,2777.6,2777.5,3.9464699]
[1645958275538,1.80778584,2777.6,2777.5,3.9464699]
[1645958275937,2.49125011,2777.6,2777.5,3.9464699]
[1645958277342,1.73045011,2777.6,2777.5,3.9464699]
[1645958277543,2.49125011,2777.6,2777.5,3.9464699]
[1645958278244,1.80778584,2777.6,2777.5,3.9464699]
[1645958278485,1.04698584,2777.6,2777.5,3.9464699]
[1645958279085,1.80778584,2777.6,2777.5,3.9464699]
[1645958279286,1.04698584,2777.6,2777.5,3.9464699]
[1645958280587,1.80778584,2777.6,2777.5,3.9464699]
[1645958280988,1.04698584,2777.6,2777.5,3.9464699]
[1645958281391,0.68954065,2777.8,2777.5,3.9464699]
[1645958281592,0.3,2777.9,2777.5,3.9464699]
[1645958281593,0.7608,2777.7,2777.5,3.9464699]
[1645958282646,1.93124677,2777.7,2777.5,3.9464699]
[1645958282847,0.7608,2777.6,2777.5,3.9464699]
[1645958284051,0.68346427,2777.8,2777.5,3.9464699]
[1645958284249,0.68916068,2777.8,2777.5,3.9464699]
[1645958284449,0.68346427,2777.7,2777.5,3.9464699]
[1645958284651,0.68346427,2777.6,2777.5,3.9464699]
[1645958284848,1.44426427,2777.6,2777.5,3.9464699]
[1645958285048,2.79359449,2777.6,2777.5,3.9464699]
[1645958285248,2.11013022,2777.6,2777.5,3.9464699]
[1645958285884,2.11560808,2777.6,2777.5,4.10802209]
[1645958290735,2.11560808,2777.6,2777.5,3.9464699]
[1645958290936,2.11560808,2777.6,2777.5,4.10786228]
[1645958291139,2.11560808,2777.6,2777.5,4.10787475]
[1645958291339,2.11560808,2777.6,2777.5,4.10787029]
[1645958291538,2.11560808,2777.6,2777.5,4.10798098]
[1645958291738,2.11560808,2777.6,2777.5,3.9464699]
[1645958291937,2.11560808,2777.6,2777.5,4.10802251]
[1645958292138,2.11560808,2777.6,2777.5,4.10801566]
[1645958292346,2.11560808,2777.6,2777.5,4.10801595]
[1645958292541,2.11560808,2777.6,2777.5,4.10798166]
[1645958292741,2.11560808,2777.6,2777.5,3.9464699]
[1645958293141,2.11560808,2777.6,2777.5,4.10797064]
[1645958293388,2.11560808,2777.6,2777.5,4.10797514]
[1645958293590,2.11560808,2777.6,2777.5,3.9464699]
[1645958293792,2.11560808,2777.6,2777.5,4.1079294]
[1645958293991,2.11560808,2777.6,2777.5,3.9464699]
[1645958294191,2.11560808,2777.6,2777.5,4.10794003]
[1645958294391,2.11560808,2777.6,2777.5,3.9464699]
[1645958294593,2.11560808,2777.6,2777.5,4.10794325]
[1645958294792,2.11560808,2777.6,2777.5,3.9464699]
[1645958294995,2.11560808,2777.6,2777.5,4.10794047]
[1645958295192,2.11560808,2777.6,2777.5,3.9464699]
[1645958295392,2.11560808,2777.6,2777.5,4.1079444]
[1645958295593,2.11560808,2777.6,2777.5,3.9464699]
[1645958295795,2.11560808,2777.6,2777.5,4.10795097]
[1645958295994,2.11560808,2777.6,2777.5,3.9464699]
[1645958296194,2.11560808,2777.6,2777.5,4.10794513]
[1645958296494,2.11560808,2777.6,2777.5,3.9464699]
[1645958296994,2.11560808,2777.6,2777.5,4.10796398]
[1645958297238,2.11560808,2777.6,2777.5,4.10796396]
[1645958297439,2.11560808,2777.6,2777.5,3.9464699]
[1645958297644,2.11560808,2777.6,2777.5,4.10793868]
[1645958297839,2.11560808,2777.6,2777.5,3.9464699]
[1645958298040,2.11560808,2777.6,2777.5,4.10794405]
[1645958298241,2.11560808,2777.6,2777.5,4.10794448]
[1645958298439,2.11560808,2777.6,2777.5,4.10794928]
[1645958298641,2.14737517,2777.6,2777.5,3.9464699]
[1645958299141,2.14737517,2777.6,2777.5,3.70255063]
[1645958299342,2.14737517,2777.6,2777.5,3.86401932]
[1645958299544,2.14737517,2777.6,2777.5,3.86402318]
[1645958299744,2.14737517,2777.6,2777.5,3.86401925]
[1645958299945,2.14737517,2777.6,2777.5,3.70255063]
[1645958300343,2.14737517,2777.6,2777.5,3.86402081]
[1645958300543,2.14737517,2777.6,2777.5,3.70255063]
[1645958300997,2.14737517,2777.6,2777.5,2.07946099]
[1645958301193,5.64737517,2777.6,2777.5,2.07946099]
[1645958301395,6.33083944,2777.6,2777.5,2.07946099]
[1645958301593,6.33083944,2777.6,2777.5,6.099e-05]
[1645958301797,12.19164248,2777.6,2777.5,6.099e-05]
[1645958301996,13.24513149,2777.6,2777.5,6.099e-05]
[1645958302399,13.00086418,2777.6,2777.5,6.099e-05]
[1645958302599,8.00086418,2777.6,2777.5,6.099e-05]